fUST/lending_fUST_20260616
["ID","MTS","AMOUNT","RATE_DAILY","PERIOD"]
[425212373,1781592647000,-505.0,0.00017411,2]
[425212374,1781592647000,-500.0,0.00017411,2]
[425212457,1781592648000,-10023.63294377,0.000178,2]
[425212459,1781592648000,-500.0,0.00017807,2]
[425212440,1781592648000,-782.35,0.00017685,2]
[425212450,1781592648000,-500.0,0.00017784,2]
[425212460,1781592648000,-599.75,0.00017808,2]
[425212449,1781592648000,-5215.42,0.00017784,2]
[425212446,1781592648000,-358.132803,0.00017751,2]
[425212445,1781592648000,-306.56,0.00017717,2]
[425212441,1781592648000,-292.76828301,0.00017685,2]
[425212439,1781592648000,-937.14,0.00017685,2]
[425212447,1781592648000,-754.91,0.00017784,2]
[425212448,1781592648000,-500.0,0.00017784,2]
[425212458,1781592648000,-1286.98797099,0.000178,2]
[425212461,1781592648000,-315.67795905,0.00017808,2]
[425212470,1781592648000,-500.0,0.00017808,2]
[425212452,1781592648000,-916.52,0.00017784,2]
[425212454,1781592648000,-418.4076352,0.00017784,2]
[425212451,1781592648000,-500.0,0.00017784,2]
[425212456,1781592648000,-500.0,0.00017784,2]
[425212455,1781592648000,-541.43,0.00017784,2]
[425212462,1781592648000,-500.0,0.00017808,2]
[425212466,1781592648000,-500.0,0.00017808,2]
[425212468,1781592648000,-500.0,0.00017808,2]
[425212464,1781592648000,-500.0,0.00017808,2]
[425212467,1781592648000,-500.880775,0.00017808,2]
[425212471,1781592648000,-500.0,0.00017808,2]
[425212469,1781592648000,-500.0,0.00017808,2]
[425212463,1781592648000,-500.0,0.00017808,2]
[425212444,1781592648000,-500.0,0.000177,2]
[425212453,1781592648000,-1380.58,0.00017784,2]
[425212437,1781592648000,-500.0,0.00017685,2]
[425212419,1781592648000,-194.72503733,0.00017534,2]
[425212438,1781592648000,-500.0,0.00017685,2]
[425212465,1781592648000,-500.0,0.00017808,2]
[425212417,1781592648000,-877.5,0.00017534,2]
[425212418,1781592648000,-500.0,0.00017534,2]
[425212412,1781592648000,-500.0,0.00017534,2]
[425212409,1781592648000,-500.0,0.00017534,2]
[425212410,1781592648000,-500.0,0.00017534,2]
[425212411,1781592648000,-500.0,0.00017534,2]
[425212420,1781592648000,-500.0,0.00017534,2]
[425212413,1781592648000,-500.0,0.00017534,2]
[425212415,1781592648000,-500.0,0.00017534,2]
[425212416,1781592648000,-500.0,0.00017534,2]
[425212414,1781592648000,-500.0,0.00017534,2]
[425212422,1781592648000,-10023.63294377,0.000176,2]
[425212424,1781592648000,-248.90273565,0.00017626,7]
[425212432,1781592648000,-500.0,0.00017684,2]
[425212433,1781592648000,-593.23,0.00017684,2]
[425212434,1781592648000,-722.33,0.00017685,2]
[425212421,1781592648000,-2172.33134165,0.000176,2]
[425212423,1781592648000,-1286.98797099,0.000176,2]
[425212425,1781592648000,-306.56,0.00017656,2]
[425212427,1781592648000,-151.0,0.00017673,7]
[425212431,1781592648000,-500.0,0.00017684,2]
[425212430,1781592648000,-185.76715456,0.00017684,2]
[425212428,1781592648000,-500.0,0.00017684,2]
[425212426,1781592648000,-151.0,0.00017673,2]
[425212429,1781592648000,-500.0,0.00017684,2]
[425212435,1781592648000,-500.0,0.00017685,2]
[425212443,1781592648000,-500.0,0.000177,2]
[425212442,1781592648000,-881.47,0.00017685,2]
[425212436,1781592648000,-505.0,0.00017685,2]
[425212474,1781592648000,-500.0,0.00017808,2]
[425212472,1781592648000,-519.75478219,0.00017808,2]
[425212476,1781592648000,-500.0,0.00017808,2]
[425212504,1781592648000,-500.0,0.00018058,2]
[425212503,1781592648000,-5215.42,0.00018058,2]
[425212509,1781592648000,-467.8,0.00018058,2]
[425212513,1781592648000,-160.0,0.00018073,2]
[425212512,1781592648000,-4119.060447,0.00018073,2]
[425212514,1781592648000,-4353.326986,0.00018073,2]
[425212523,1781592648000,-16326.610421,0.00018073,2]
[425212524,1781592648000,-500.0,0.00018081,2]
[425212525,1781592648000,-599.75,0.00018082,2]
[425212522,1781592648000,-14017.094646,0.00018073,2]
[425212515,1781592648000,-8546.653973,0.00018073,2]
[425212518,1781592648000,-4779.031548,0.00018073,2]
[425212517,1781592648000,-2469.515774,0.00018073,2]
[425212521,1781592648000,-11707.578872,0.00018073,2]
[425212516,1781592648000,-160.0,0.00018073,2]
[425212519,1781592648000,-7088.547323,0.00018073,2]
[425212520,1781592648000,-9398.063097,0.00018073,2]
[425212527,1781592648000,-500.0,0.00018082,2]
[425212532,1781592648000,-500.0,0.00018082,2]
[425212533,1781592648000,-500.0,0.00018082,2]
[425212535,1781592648000,-500.0,0.00018082,2]
[425212534,1781592648000,-500.0,0.00018082,2]
[425212536,1781592648000,-500.0,0.00018082,2]
[425212537,1781592648000,-877.5,0.00018082,2]
[425212529,1781592648000,-500.0,0.00018082,2]
[425212530,1781592648000,-500.0,0.00018082,2]
[425212526,1781592648000,-500.0,0.00018082,2]
[425212531,1781592648000,-500.0,0.00018082,2]
[425212473,1781592648000,-500.0,0.00017808,2]
[425212502,1781592648000,-500.0,0.00018058,2]
[425212507,1781592648000,-1380.58,0.00018058,2]
[425212528,1781592648000,-500.0,0.00018082,2]
[425212508,1781592648000,-541.43,0.00018058,2]
[425212505,1781592648000,-500.0,0.00018058,2]
[425212484,1781592648000,-593.23,0.00017958,2]
[425212486,1781592648000,-500.0,0.00017959,2]
[425212487,1781592648000,-505.0,0.00017959,2]
[425212538,1781592648000,-500.0,0.00018082,2]
[425212475,1781592648000,-877.5,0.00017808,2]
[425212477,1781592648000,-500.0,0.00017808,2]
[425212479,1781592648000,-306.56,0.00017946,2]
[425212480,1781592648000,-468.34027272,0.00017958,2]
[425212483,1781592648000,-500.0,0.00017958,2]
[425212478,1781592648000,-306.56,0.00017845,2]
[425212481,1781592648000,-539.18379816,0.00017958,2]
[425212482,1781592648000,-500.0,0.00017958,2]
[425212488,1781592648000,-500.0,0.00017959,2]
[425212490,1781592648000,-937.14,0.00017959,2]
[425212485,1781592648000,-722.33,0.00017959,2]
[425212491,1781592648000,-782.35,0.00017959,2]
[425212489,1781592648000,-500.0,0.00017959,2]
[425212501,1781592648000,-754.91,0.00018058,2]
[425212499,1781592648000,-373.37,0.00018027,2]
[425212500,1781592648000,-263.320171,0.00018048,2]
[425212510,1781592648000,-160.0,0.00018073,2]
[425212496,1781592648000,-364.74343024,0.00018,2]
[425212511,1781592648000,-2139.530223,0.00018073,2]
[425212498,1781592648000,-373.36,0.00018002,2]
[425212492,1781592648000,-881.47,0.00017959,2]
[425212497,1781592648000,-10023.63294377,0.00018,2]
[425212493,1781592648000,-234.45,0.00017974,2]
[425212506,1781592648000,-916.52,0.00018058,2]
[425212494,1781592648000,-500.0,0.00017974,2]
[425212495,1781592648000,-201.1783468,0.00018,2]
[425212587,1781592649000,-364.74343024,0.000185,2]
[425212574,1781592649000,-500.0,0.00018356,2]
[425212572,1781592649000,-500.0,0.00018356,2]
[425212569,1781592649000,-500.0,0.00018356,2]
[425212577,1781592649000,-877.5,0.00018356,2]
[425212575,1781592649000,-500.0,0.00018356,2]
[425212576,1781592649000,-500.0,0.00018356,2]
[425212578,1781592649000,-627.82352382,0.00018356,2]
[425212581,1781592649000,-273.86151903,0.000184,2]
[425212580,1781592649000,-1076.3864069,0.00018375,2]
[425212584,1781592649000,-364.74343024,0.000184,2]
[425212567,1781592649000,-500.0,0.00018356,2]
[425212571,1781592649000,-500.0,0.00018356,2]
[425212590,1781592649000,-593.23,0.00018506,2]
[425212586,1781592649000,-306.56,0.00018433,2]
[425212583,1781592649000,-273.86151903,0.000184,2]
[425212582,1781592649000,-273.86151903,0.000184,2]
[425212589,1781592649000,-500.0,0.00018506,2]
[425212588,1781592649000,-10023.63294377,0.000185,2]
[425212585,1781592649000,-306.59,0.00018424,2]
[425212592,1781592649000,-505.0,0.00018507,2]
[425212591,1781592649000,-722.33,0.00018507,2]
[425212594,1781592649000,-500.0,0.00018507,2]
[425212593,1781592649000,-500.0,0.00018507,2]
[425212573,1781592649000,-500.0,0.00018356,2]
[425212595,1781592649000,-937.14,0.00018507,2]
[425212579,1781592649000,-500.0,0.00018356,2]
[425212565,1781592649000,-599.75,0.00018356,2]
[425212560,1781592649000,-916.52,0.00018332,2]
[425212568,1781592649000,-500.0,0.00018356,2]
[425212596,1781592649000,-782.35,0.00018507,2]
[425212539,1781592649000,-500.0,0.00018082,2]
[425212549,1781592649000,-500.0,0.00018233,2]
[425212544,1781592649000,-593.23,0.00018232,2]
[425212540,1781592649000,-364.74343024,0.000182,2]
[425212550,1781592649000,-937.14,0.00018233,2]
[425212547,1781592649000,-505.0,0.00018233,2]
[425212542,1781592649000,-500.0,0.00018232,2]
[425212548,1781592649000,-500.0,0.00018233,2]
[425212541,1781592649000,-10023.63294377,0.000182,2]
[425212546,1781592649000,-359.91259385,0.00018233,2]
[425212543,1781592649000,-538.34043122,0.00018232,2]
[425212570,1781592649000,-500.0,0.00018356,2]
[425212552,1781592649000,-881.47,0.00018233,2]
[425212563,1781592649000,-516.36,0.00018346,3]
[425212551,1781592649000,-782.35,0.00018233,2]
[425212561,1781592649000,-1380.58,0.00018332,2]
[425212558,1781592649000,-500.0,0.00018332,2]
[425212562,1781592649000,-541.43,0.00018332,2]
[425212553,1781592649000,-500.0,0.00018248,2]
[425212554,1781592649000,-10023.63294377,0.000183,2]
[425212555,1781592649000,-754.91,0.00018332,2]
[425212557,1781592649000,-5215.42,0.00018332,2]
[425212556,1781592649000,-500.0,0.00018332,2]
[425212566,1781592649000,-500.0,0.00018356,2]
[425212564,1781592649000,-500.0,0.00018355,2]
[425212559,1781592649000,-500.0,0.00018332,2]
[425212597,1781592649000,-881.47,0.00018507,2]
[425212545,1781592649000,-722.33,0.00018233,2]
[425212599,1781592649000,-754.91,0.00018606,2]
[425212629,1781592649000,-593.23,0.0001878,2]
[425212630,1781592649000,-722.33,0.00018781,2]
[425212633,1781592649000,-158.70681362,0.00018781,2]
[425212635,1781592649000,-782.35,0.00018781,2]
[425212636,1781592649000,-881.47,0.00018781,2]
[425212634,1781592649000,-937.14,0.00018781,2]
[425212637,1781592649000,-5184.0328996,0.00018828,2]
[425212643,1781592649000,-1000.0,0.00018848,2]
[425212641,1781592649000,-1000.0,0.00018848,2]
[425212638,1781592649000,-1000.0,0.00018848,2]
[425212639,1781592649000,-1000.0,0.00018848,2]
[425212644,1781592649000,-800.0,0.00018848,2]
[425212640,1781592649000,-1000.0,0.00018848,2]
[425212642,1781592649000,-1000.0,0.00018848,2]
[425212645,1781592649000,-330.0,0.00018848,2]
[425212655,1781592649000,-500.0,0.00018904,2]
[425212657,1781592649000,-500.0,0.00018904,2]
[425212656,1781592649000,-500.0,0.00018904,2]
[425212647,1781592649000,-5215.42,0.0001888,2]
[425212648,1781592649000,-916.52,0.0001888,2]
[425212654,1781592649000,-369.38502005,0.00018904,2]
[425212650,1781592649000,-541.43,0.0001888,2]
[425212649,1781592649000,-1380.58,0.0001888,2]
[425212652,1781592649000,-599.75,0.00018904,2]
[425212646,1781592649000,-754.91,0.0001888,2]
[425212653,1781592649000,-500.0,0.00018904,2]
[425212598,1781592649000,-207.62,0.00018522,2]
[425212632,1781592649000,-500.0,0.00018781,2]
[425212626,1781592649000,-10023.63294377,0.000187,2]
[425212651,1781592649000,-10023.63294377,0.000189,2]
[425212625,1781592649000,-364.74343024,0.000187,2]
[425212627,1781592649000,-2954.78259646,0.00018752,2]
[425212600,1781592649000,-597.14854088,0.00018606,2]
[425212605,1781592649000,-1380.58,0.00018606,2]
[425212607,1781592649000,-516.3978611,0.00018629,2]
[425212601,1781592649000,-5215.42,0.00018606,2]
[425212603,1781592649000,-378.30630716,0.00018606,2]
[425212602,1781592649000,-215.897853,0.00018606,2]
[425212604,1781592649000,-916.52,0.00018606,2]
[425212608,1781592649000,-599.75,0.0001863,2]
[425212609,1781592649000,-500.0,0.0001863,2]
[425212610,1781592649000,-500.0,0.0001863,2]
[425212612,1781592649000,-502.99829306,0.0001863,2]
[425212614,1781592649000,-500.0,0.0001863,2]
[425212606,1781592649000,-541.43,0.00018606,2]
[425212611,1781592649000,-500.0,0.0001863,2]
[425212624,1781592649000,-2174.55040709,0.00018649,2]
[425212628,1781592649000,-500.0,0.0001878,2]
[425212631,1781592649000,-505.0,0.00018781,2]
[425212622,1781592649000,-254.899957,0.00018632,2]
[425212619,1781592649000,-500.0,0.0001863,2]
[425212621,1781592649000,-500.0,0.0001863,2]
[425212623,1781592649000,-2120.51963828,0.00018649,2]
[425212616,1781592649000,-500.0,0.0001863,2]
[425212615,1781592649000,-500.0,0.0001863,2]
[425212617,1781592649000,-500.0,0.0001863,2]
[425212618,1781592649000,-500.0,0.0001863,2]
[425212613,1781592649000,-500.0,0.0001863,2]
[425212620,1781592649000,-877.5,0.0001863,2]
[425212696,1781592650000,-517.96730668,0.00019178,2]
[425212686,1781592650000,-5215.42,0.00019154,2]
[425212687,1781592650000,-916.52,0.00019154,2]
[425212694,1781592650000,-520.19904536,0.00019178,2]
[425212693,1781592650000,-500.0,0.00019178,2]
[425212695,1781592650000,-520.53513661,0.00019178,2]
[425212691,1781592650000,-500.0,0.00019178,2]
[425212690,1781592650000,-599.75,0.00019178,2]
[425212685,1781592650000,-754.91,0.00019154,2]
[425212692,1781592650000,-524.46093093,0.00019178,2]
[425212709,1781592650000,-754.91,0.00019428,2]
[425212701,1781592650000,-1583.0,0.00019178,2]
[425212698,1781592650000,-877.5,0.00019178,2]
[425212700,1781592650000,-430.5498,0.00019178,2]
[425212710,1781592650000,-5215.42,0.00019428,2]
[425212703,1781592650000,-722.33,0.00019329,2]
[425212702,1781592650000,-500.0,0.00019327,2]
[425212707,1781592650000,-782.35,0.00019329,2]
[425212705,1781592650000,-500.0,0.00019329,2]
[425212706,1781592650000,-937.14,0.00019329,2]
[425212708,1781592650000,-881.47,0.00019329,2]
[425212704,1781592650000,-505.0,0.00019329,2]
[425212689,1781592650000,-541.43,0.00019154,2]
[425212711,1781592650000,-916.52,0.00019428,2]
[425212699,1781592650000,-500.0,0.00019178,2]
[425212697,1781592650000,-500.0,0.00019178,2]
[425212673,1781592650000,-500.0,0.00019053,2]
[425212680,1781592650000,-10023.63294377,0.000191,2]
[425212713,1781592650000,-541.43,0.00019428,2]
[425212658,1781592650000,-500.0,0.00018904,2]
[425212659,1781592650000,-500.0,0.00018904,2]
[425212660,1781592650000,-500.0,0.00018904,2]
[425212661,1781592650000,-500.0,0.00018904,2]
[425212670,1781592650000,-26378.576673,0.00018976,2]
[425212662,1781592650000,-526.13553342,0.00018904,2]
[425212663,1781592650000,-877.5,0.00018904,2]
[425212671,1781592650000,-910.63629708,0.00018998,2]
[425212665,1781592650000,-327.687323,0.00018976,2]
[425212669,1781592650000,-5223.992384,0.00018976,2]
[425212668,1781592650000,-2567.436268,0.00018976,2]
[425212688,1781592650000,-1380.58,0.00019154,2]
[425212664,1781592650000,-500.0,0.00018904,2]
[425212666,1781592650000,-398.863902,0.00018976,2]
[425212672,1781592650000,-100000.0,0.00019,2]
[425212683,1781592650000,-958.0,0.00019112,2]
[425212682,1781592650000,-1840.0,0.00019112,2]
[425212674,1781592650000,-722.33,0.00019055,2]
[425212677,1781592650000,-937.14,0.00019055,2]
[425212684,1781592650000,-1599.228869,0.00019142,2]
[425212675,1781592650000,-505.0,0.00019055,2]
[425212676,1781592650000,-500.0,0.00019055,2]
[425212679,1781592650000,-881.47,0.00019055,2]
[425212681,1781592650000,-1418.0,0.00019112,2]
[425212678,1781592650000,-782.35,0.00019055,2]
[425212667,1781592650000,-474.480669,0.00018976,2]
[425212712,1781592650000,-1380.58,0.00019428,2]
[425212714,1781592650000,-599.75,0.00019452,2]
[425212716,1781592650000,-500.0,0.00019452,2]
[425212752,1781592650000,-22595.38494681,0.000198,3]
[425212745,1781592650000,-599.75,0.00019726,2]
[425212750,1781592650000,-238.3505183,0.000198,2]
[425212749,1781592650000,-1583.0,0.00019726,2]
[425212751,1781592650000,-229.8992971,0.000198,2]
[425212746,1781592650000,-500.0,0.00019726,2]
[425212754,1781592650000,-160.0,0.000198,3]
[425212755,1781592650000,-256.8882099,0.000198,2]
[425212753,1781592650000,-417.15472785,0.000198,3]
[425212759,1781592650000,-505.0,0.00019876,2]
[425212758,1781592650000,-722.33,0.00019876,2]
[425212762,1781592650000,-881.47,0.00019876,2]
[425212756,1781592650000,-2954.78259646,0.00019865,2]
[425212763,1781592650000,-19589.97144,0.00019963,2]
[425212760,1781592650000,-937.14,0.00019876,2]
[425212761,1781592650000,-782.35,0.00019876,2]
[425212757,1781592650000,-500.0,0.00019875,2]
[425212765,1781592650000,-754.91,0.00019976,2]
[425212764,1781592650000,-98919.66253,0.00019963,2]
[425212767,1781592650000,-916.52,0.00019976,2]
[425212766,1781592650000,-5215.42,0.00019976,2]
[425212769,1781592650000,-541.43,0.00019976,2]
[425212771,1781592650000,-126000.0,0.0002,2]
[425212768,1781592650000,-1380.58,0.00019976,2]
[425212770,1781592650000,-1207364.12635923,0.0002,2]
[425212715,1781592650000,-615.01,0.00019452,2]
[425212744,1781592650000,-541.43,0.00019702,2]
[425212747,1781592650000,-194.22164818,0.00019726,2]
[425212741,1781592650000,-5215.42,0.00019702,2]
[425212719,1781592650000,-500.0,0.00019452,2]
[425212722,1781592650000,-300.0,0.00019589,3]
[425212720,1781592650000,-291.11396256,0.00019452,3]
[425212717,1781592650000,-500.0,0.00019452,2]
[425212718,1781592650000,-877.5,0.00019452,2]
[425212721,1781592650000,-200.0,0.00019476,2]
[425212723,1781592650000,-1000.0,0.00019598,2]
[425212725,1781592650000,-1000.0,0.00019598,2]
[425212724,1781592650000,-1000.0,0.00019598,2]
[425212726,1781592650000,-1000.0,0.00019599,2]
[425212748,1781592650000,-877.5,0.00019726,2]
[425212727,1781592650000,-470.02327795,0.000196,2]
[425212732,1781592650000,-937.14,0.00019603,2]
[425212728,1781592650000,-500.0,0.00019601,2]
[425212731,1781592650000,-467.33826461,0.00019603,2]
[425212742,1781592650000,-916.52,0.00019702,2]
[425212743,1781592650000,-1380.58,0.00019702,2]
[425212740,1781592650000,-754.91,0.00019702,2]
[425212733,1781592650000,-782.35,0.00019603,2]
[425212738,1781592650000,-210.0,0.00019698,2]
[425212739,1781592650000,-210.0,0.00019698,2]
[425212736,1781592650000,-1000.0,0.00019698,2]
[425212735,1781592650000,-160.0,0.00019638,2]
[425212734,1781592650000,-881.47,0.00019603,2]
[425212730,1781592650000,-505.0,0.00019603,2]
[425212729,1781592650000,-722.33,0.00019603,2]
[425212737,1781592650000,-550.0,0.00019698,2]
[425212772,1781592651000,-1939.78263595,0.0002,2]
[425212774,1781592651000,-151.0,0.0002,2]
[425212773,1781592651000,-695427.39295779,0.0002,2]
[425212777,1781592651000,-543984.68329121,0.0002,2]
[425212775,1781592651000,-209.476,0.0002,2]
[425212778,1781592651000,-7333.9782303,0.0002,2]
[425212779,1781592651000,-500.0,0.00015492,2]
[425212780,1781592651000,-500.0,0.00015766,2]
[425212782,1781592651000,-37.01897339,0.00016905,2]
[425212781,1781592651000,-160.0,0.00016905,2]
[425212776,1781592651000,-154.49,0.0002,3]
[425212785,1781592978000,305.92206183,2.01e-05,2]
[425212790,1781593048000,704.65808073,0.0001,7]
[425212791,1781593053000,50461.16413271,7.6e-05,2]
[425212800,1781593230000,4120.94686031,0.0001015,2]
[425212801,1781593251000,-1393.51790926,0.00010303,2]
[425212802,1781593267000,-430.51214837,0.00010618,2]
[425212803,1781593284000,-1854.0611611,0.00011,2]
[425212804,1781593307000,-1258.96892735,0.000115,2]
[425212806,1781593323000,-6116.32548793,0.00012,2]
[425212807,1781593340000,-207.611698,0.00012598,2]
[425212808,1781593357000,-500.0,0.00014396,2]
[425212809,1781593374000,-500.0,0.00014397,2]
[425212854,1781593832000,-500.0,0.00013805,2]
[425212848,1781593832000,-500.0,0.00013805,2]
[425212845,1781593832000,-500.0,0.00013805,2]
[425212850,1781593832000,-500.0,0.00013805,2]
[425212842,1781593832000,-391.08736695,0.00013805,2]
[425212844,1781593832000,-318.66607268,0.00013805,2]
[425212853,1781593832000,-500.0,0.00013805,2]
[425212851,1781593832000,-500.0,0.00013805,2]
[425212840,1781593832000,-500.0,0.00013805,2]
[425212843,1781593832000,-500.0,0.00013805,2]
[425212847,1781593832000,-500.0,0.00013805,2]
[425212855,1781593832000,-500.0,0.00013805,2]
[425212839,1781593832000,-500.0,0.00013805,2]
[425212841,1781593832000,-108.91263305,0.00013805,2]
[425212838,1781593832000,-500.0,0.00013805,2]
[425212846,1781593832000,-500.0,0.00013805,2]
[425212837,1781593832000,-500.0,0.00013805,2]
[425212836,1781593832000,-500.0,0.00013805,2]
[425212849,1781593832000,-500.0,0.00013805,2]
[425212857,1781593832000,-500.0,0.00013805,2]
[425212865,1781593832000,-227.02814984,0.00013805,2]
[425212858,1781593832000,-500.0,0.00013805,2]
[425212876,1781593832000,-400.0,0.00013805,2]
[425212877,1781593832000,-12642.95167528,0.00013806,2]
[425212873,1781593832000,-500.0,0.00013805,2]
[425212872,1781593832000,-500.0,0.00013805,2]
[425212875,1781593832000,-500.0,0.00013805,2]
[425212874,1781593832000,-500.0,0.00013805,2]
[425212870,1781593832000,-356.83878123,0.00013805,2]
[425212871,1781593832000,-500.0,0.00013805,2]
[425212856,1781593832000,-500.0,0.00013805,2]
[425212868,1781593832000,-500.0,0.00013805,2]
[425212867,1781593832000,-500.0,0.00013805,2]
[425212866,1781593832000,-272.97185016,0.00013805,2]
[425212864,1781593832000,-93.78368012,0.00013805,2]
[425212863,1781593832000,-354.46210708,0.00013805,2]
[425212862,1781593832000,-76.71674764,0.00013805,2]
[425212861,1781593832000,-423.28325236,0.00013805,2]
[425212860,1781593832000,-376.482025,0.00013805,2]
[425212859,1781593832000,-123.517975,0.00013805,2]
[425212869,1781593832000,-500.0,0.00013805,2]
[425212900,1781593840000,-1008.94411318,0.00013806,2]
[425212902,1781593840000,-3171.22771176,0.00013806,2]
[425212901,1781593840000,-12847.58950579,0.00013806,2]
[425212906,1781593843000,-4750.37248574,0.00013806,2]
[425212907,1781593844000,-309.18513893,0.00013806,2]
[425212911,1781593848000,-1974.63957015,0.00013806,2]
[425212913,1781593849000,-3846.00985412,0.00013806,2]
[425212912,1781593849000,-1787.54014772,0.00013806,2]
[425212914,1781593944000,232.84234373,0.00023114,120]
[425212979,1781595032000,-306.32293871,0.00012752,2]
[425212991,1781595032000,-768.14015586,0.00012782,2]
[425212989,1781595032000,-623.88769889,0.00012781,2]
[425212977,1781595032000,-781.055,0.00012624,13]
[425212983,1781595032000,-545.42502283,0.00012781,2]
[425212985,1781595032000,-500.0,0.00012781,2]
[425212987,1781595032000,-500.0,0.00012781,2]
[425212980,1781595032000,-500.0,0.00012781,2]
[425212998,1781595038000,-439.34694835,0.00012782,2]
[425212997,1781595038000,-3431.17298948,0.00012782,2]
[425212996,1781595038000,-811.51114452,0.00012782,2]
[425213039,1781595046000,-500.0,0.00013805,2]
[425213047,1781595046000,-500.0,0.00013806,2]
[425213046,1781595046000,-400.0,0.00013805,2]
[425213049,1781595046000,-500.0,0.00013806,2]
[425213045,1781595046000,-500.0,0.00013805,2]
[425213044,1781595046000,-500.0,0.00013805,2]
[425213042,1781595046000,-302.51316218,0.00013805,2]
[425213056,1781595046000,-500.0,0.00013806,2]
[425213052,1781595046000,-500.0,0.00013806,2]
[425213062,1781595046000,-500.0,0.00013806,2]
[425213055,1781595046000,-500.0,0.00013806,2]
[425213061,1781595046000,-169.95746943,0.00013806,2]
[425213063,1781595046000,-502.75787547,0.00013806,2]
[425213051,1781595046000,-500.0,0.00013806,2]
[425213040,1781595046000,-500.0,0.00013805,2]
[425213050,1781595046000,-515.65601039,0.00013806,2]
[425213043,1781595046000,-500.0,0.00013805,2]
[425213033,1781595046000,-259.29342166,0.00013805,2]
[425213038,1781595046000,-500.0,0.00013805,2]
[425213023,1781595046000,-2469.16659255,0.00012752,2]
[425213024,1781595046000,-76057.37841329,0.00012782,2]
[425213026,1781595046000,-306.32293867,0.00013264,2]
[425213036,1781595046000,-500.0,0.00013805,2]
[425213025,1781595046000,-626.9028985,0.00012852,2]
[425213028,1781595046000,-496.95999052,0.00013698,2]
[425213027,1781595046000,-436.95742308,0.00013543,2]
[425213029,1781595046000,-500.0,0.00013698,2]
[425213053,1781595046000,-500.0,0.00013806,2]
[425213032,1781595046000,-500.0,0.00013805,2]
[425213031,1781595046000,-500.0,0.00013805,2]
[425213030,1781595046000,-306.32293867,0.00013776,2]
[425213035,1781595046000,-500.0,0.00013805,2]
[425213034,1781595046000,-500.0,0.00013805,2]
[425213037,1781595046000,-500.0,0.00013805,2]
[425213041,1781595046000,-500.0,0.00013805,2]
[425213054,1781595046000,-500.0,0.00013806,2]
[425213048,1781595046000,-500.0,0.00013806,2]
[425213059,1781595046000,-500.0,0.00013806,2]
[425213082,1781595046000,-500.0,0.00013806,2]
[425213078,1781595046000,-210.26136119,0.00013806,2]
[425213085,1781595046000,-500.0,0.00013806,2]
[425213086,1781595046000,-500.0,0.00013806,2]
[425213079,1781595046000,-500.0,0.00013806,2]
[425213089,1781595046000,-566.0,0.00013806,2]
[425213087,1781595046000,-566.0,0.00013806,2]
[425213083,1781595046000,-506.0992176,0.00013806,2]
[425213080,1781595046000,-500.0,0.00013806,2]
[425213092,1781595046000,-566.0,0.00013806,2]
[425213093,1781595046000,-566.0,0.00013806,2]
[425213091,1781595046000,-566.0,0.00013806,2]
[425213096,1781595046000,-566.0,0.00013806,2]